[Event "HUN-chT Youth 2019"]
[Site "Budapest"]
[Date "2019.10.29"]
[Round "6"]
[White "Megyeri, Martin"]
[Black "Palczert, Matyas"]
[Result "1/2-1/2"]
[ECO "A13"]
[WhiteElo "1611"]
[BlackElo "2009"]
[Annotator "NA"]
[PlyCount "91"]
[EventDate "2019.??.??"]
[EventCountry "HUN"]
[SourceTitle "playchess.com"]
[Source "ChessBase"]
[SourceQuality "1"]
[TimeControl "5400+30"]

1. Nf3 Nf6 2. b3 e6 3. Bb2 d5 4. e3 Be7 5. Be2 O-O 6. O-O c5 7. d4 Nc6 8. Nbd2 b6 9. c4 Bb7 10. Rc1 Rc8 {A13: English Opening: 1...e6} 11. a3 Qd7 $146 ({Predecessor:} 11... cxd4 12. exd4 dxc4 13. bxc4 Qd6 14. Re1 Rfd8 15. Nf1 Qf4 16. g3 Qb8 17. Bd3 Ba8 18. N1d2 {0-1 (71) Maghsoodloo,P (2584)-Omidi,A (2313) Rasht 2017}) 12. Qc2 Rfd8 13. Rfd1 Qe8 14. Qb1 h6 15. h3 cxd4 16. exd4 Qf8 17. b4 a5 18. b5 Na7 19. a4 dxc4 20. Nxc4 Nd5 21. Ne3 Nxe3 22. fxe3 Bxf3 23. Bxf3 Bg5 24. Kf2 Qb4 25. Qa2 Rxc1 26. Bxc1 Rc8 27. Bd2 Qd6 28. g3 Bd8 29. Bb7 Rb8 30. Bf3 Bc7 31. Rg1 Nc8 32. Qc4 Ne7 33. e4 e5 34. d5 f5 35. Kg2 fxe4 36. Bxe4 Rd8 37. Rd1 Kh8 38. Bc1 Ng8 39. Bf5 Nf6 {[#]} 40. Be6 $16 Qe7 41. Qc6 e4 42. Qc4 Nh5 43. Qxe4 Nxg3 44. Qg6 Rf8 45. Bb2 Nf5 46. Kh1 1/2-1/2

[Event "HUN-chT Youth 2019"]
[Site "Budapest"]
[Date "2019.10.29"]
[Round "6"]
[White "Karacsonyi, Luca"]
[Black "Puskas, Gergely"]
[Result "1-0"]
[ECO "C65"]
[WhiteElo "1556"]
[BlackElo "1015"]
[Annotator "NA RC"]
[PlyCount "78"]
[EventDate "2019.??.??"]
[EventCountry "HUN"]
[SourceTitle "playchess.com"]
[Source "ChessBase"]
[SourceQuality "1"]
[TimeControl "5400+30"]

1. e4 e5 2. Nf3 Nc6 3. Bc4 d6 4. Nc3 Nf6 5. d3 Be6 6. Bb5 Bd7 7. Bg5 Be7 8. Qd2 Nd4 9. Nxd4 exd4 10. Bxf6 Bxf6 11. Bxd7+ Qxd7 12. Nd5 Bd8 13. O-O c6 14. Nf4 Bg5 15. g3 Qg4 16. Qe2 Qxe2 17. Nxe2 O-O 18. Nxd4 c5 19. Nb5 Rfd8 20. Nc7 Rac8 21. Nd5 Rc6 22. f4 Bf6 23. Nxf6+ gxf6 24. Rad1 d5 25. Kf2 c4 26. exd5 Rxd5 27. d4 c3 28. b3 b5 29. Ke3 b4 30. Ke4 Rcd6 31. f5 Ra5 32. Ra1 Rd8 33. g4 Re8+ 34. Kd3 h6 35. Rfe1 Rxe1 36. Rxe1 Rxa2 37. d5 Ra6 38. Kc4 Rb6 39. Kc5 Kh7 1-0

[Event "HUN-chT Youth 2019"]
[Site "Budapest"]
[Date "2019.10.29"]
[Round "6"]
[White "Vadkerti, Vince"]
[Black "Foldes, Marton Gabor"]
[Result "0-1"]
[ECO "B48"]
[WhiteElo "1531"]
[BlackElo "1755"]
[Annotator "NA RC"]
[PlyCount "56"]
[EventDate "2019.??.??"]
[EventCountry "HUN"]
[SourceTitle "playchess.com"]
[Source "ChessBase"]
[SourceQuality "1"]
[TimeControl "5400+30"]

1. e4 c5 2. Nc3 e6 3. Nf3 Nc6 4. d4 cxd4 5. Nxd4 Qc7 6. Be3 a6 7. Qf3 Nf6 8. O-O-O Ne5 9. Qg3 b5 10. Nf3 d6 11. Nxe5 dxe5 12. Be2 Bd7 13. f4 b4 14. Nb1 Nxe4 15. Qg4 h5 16. Rxd7 Qxd7 17. Qf3 f5 18. fxe5 Rb8 19. Rd1 Qc7 20. Bd3 Nc5 21. Bxc5 Bxc5 22. Qg3 Qf7 23. Qf3 O-O 24. Re1 Rfd8 25. Nd2 Rbc8 26. Nc4 Bf8 27. Rf1 g6 28. h3 Rd4 0-1

[Event "HUN-chT Youth 2019"]
[Site "Budapest"]
[Date "2019.10.29"]
[Round "6"]
[White "Kellermann, Botond"]
[Black "Nagy, Botond"]
[Result "1-0"]
[ECO "D12"]
[WhiteElo "1274"]
[BlackElo "1281"]
[Annotator "NA RC"]
[PlyCount "119"]
[EventDate "2019.??.??"]
[EventCountry "HUN"]
[SourceTitle "playchess.com"]
[Source "ChessBase"]
[SourceQuality "1"]
[TimeControl "5400+30"]

1. d4 d5 2. c4 c6 3. Nf3 Nf6 4. Nbd2 Bf5 5. e3 e6 6. Be2 Be7 7. O-O Nbd7 8. Qb3 Qc7 9. Bd3 Bg6 10. Re1 Qb6 11. Qxb6 Nxb6 12. Bxg6 hxg6 13. c5 Nbd7 14. b4 a5 15. bxa5 Rxa5 16. Bb2 O-O 17. Bc3 Ra7 18. Reb1 Ne8 19. a4 Nc7 20. Nb3 Na6 21. Na5 Rb8 22. Rb2 Bd8 23. Nb3 b6 24. cxb6 Nxb6 25. Na5 Rc7 26. Ne5 Nd7 27. Naxc6 Rxb2 28. Bxb2 Nxe5 29. Nxe5 Rb7 30. Ba3 g5 31. h3 f6 32. Nd3 Nc7 33. Nc5 Ra7 34. Rb1 Be7 35. Ra1 Kf7 36. Kf1 Ke8 37. Ke2 Bxc5 38. Bxc5 Ra6 39. Kd2 Kd7 40. Kc2 Ra8 41. Kb3 Kc6 42. Rc1 Kd7 43. Bb6 Na6 44. a5 Rc8 45. Rxc8 Kxc8 46. Ka4 Kb7 47. Kb5 f5 48. g3 Nb8 49. f3 Na6 50. Bd8 g6 51. Bxg5 Nc7+ 52. Kc5 Ne8 53. g4 fxg4 54. hxg4 Kc7 55. a6 Kb8 56. Kb6 Nd6 57. Bf4 Ka8 58. Bxd6 e5 59. Bxe5 g5 60. Bf6 1-0

[Event "HUN-chT Youth 2019"]
[Site "Budapest"]
[Date "2019.10.29"]
[Round "6"]
[White "Meszaros, Jazmin"]
[Black "Onodi, Miklos"]
[Result "0-1"]
[ECO "B34"]
[WhiteElo "1171"]
[BlackElo "1548"]
[Annotator "NA RC"]
[PlyCount "56"]
[EventDate "2019.??.??"]
[EventCountry "HUN"]
[SourceTitle "playchess.com"]
[Source "ChessBase"]
[SourceQuality "1"]
[TimeControl "5400+30"]

1. e4 c5 2. d4 cxd4 3. Qxd4 Nc6 4. Qd1 g6 5. Nf3 Bg7 6. Be2 Nf6 7. O-O Nxe4 8. Bd3 Nf6 9. Bg5 O-O 10. Bxf6 Bxf6 11. Qd2 Bxb2 12. Qh6 Bg7 13. Qh3 d5 14. Qh4 e6 15. Qxd8 Rxd8 16. Nc3 Bxc3 17. Rad1 e5 18. Be2 Nd4 19. Nxd4 exd4 20. Rd3 Bf5 21. Rg3 Bxc2 22. Rg5 d3 23. Bxd3 Bxd3 24. Rd1 Bc4 25. Rc1 Bd2 26. Rxc4 dxc4 27. Rc5 Bb4 28. Rxc4 Rd1# 0-1

[Event "HUN-chT Youth 2019"]
[Site "Budapest"]
[Date "2019.10.29"]
[Round "6"]
[White "Szamko, Balint"]
[Black "Karacsonyi, Bank"]
[Result "0-1"]
[ECO "B50"]
[WhiteElo "1129"]
[BlackElo "1513"]
[Annotator "NA RC"]
[PlyCount "101"]
[EventDate "2019.??.??"]
[EventCountry "HUN"]
[SourceTitle "playchess.com"]
[Source "ChessBase"]
[SourceQuality "1"]
[TimeControl "5400+30"]

1. e4 c5 2. Nf3 d6 3. Bc4 Nf6 4. e5 dxe5 5. Nxe5 e6 6. Nc3 Bd6 7. Nf3 Nc6 8. d3 O-O 9. O-O a6 10. Bg5 b5 11. Bb3 Bb7 12. Ne4 Be7 13. a3 Nxe4 14. Bxe7 Nxe7 15. dxe4 c4 16. Ba2 Bxe4 17. c3 Qd3 18. Qxd3 cxd3 19. Rfe1 Bf5 20. Rad1 Rfd8 21. Ne5 Rd6 22. Re3 Rad8 23. Bb1 Nd5 24. Rg3 Nf4 25. Kf1 f6 26. Ng4 Nh5 27. Re3 Bxg4 28. f3 Bf5 29. g4 Nf4 30. gxf5 exf5 31. Ba2+ Kf8 32. Bb1 g5 33. b3 Nd5 34. Rexd3 Ne3+ 35. Rxe3 Rxd1+ 36. Re1 g4 37. Ke2 gxf3+ 38. Kf2 R8d2+ 39. Kf1 f2 40. Rxd1 Rxd1+ 41. Kxf2 Rxb1 42. b4 Rb3 43. c4 bxc4 44. Ke2 c3 45. Kd1 f4 46. Kc2 f3 47. Kxb3 f2 48. Kxc3 f1=Q 49. Kd2 Qf3 50. h4 Ke7 51. Kc2 0-1

[Event "HUN-chT Youth 2019"]
[Site "Budapest"]
[Date "2019.10.29"]
[Round "6"]
[White "Benedek, Huba"]
[Black "Molnar, Dalma Reka"]
[Result "0-1"]
[ECO "C47"]
[WhiteElo "1125"]
[BlackElo "1088"]
[Annotator "NA RC"]
[PlyCount "148"]
[EventDate "2019.??.??"]
[EventCountry "HUN"]
[SourceTitle "playchess.com"]
[Source "ChessBase"]
[SourceQuality "1"]
[TimeControl "5400+30"]

1. e4 e5 2. Nf3 Nc6 3. Nc3 Nf6 4. h3 Bc5 5. Nxe5 Bxf2+ 6. Kxf2 Nxe5 7. d4 Ng6 8. Qf3 d6 9. Bc4 Be6 10. Bd3 h6 11. Rd1 O-O 12. g4 Nh4 13. Qg3 Nh7 14. e5 f5 15. Kg1 fxg4 16. Bxh7+ Kxh7 17. Rf1 Qe7 18. Be3 Bc4 19. Rf4 Rxf4 20. Bxf4 dxe5 21. Bxe5 Rf8 22. b3 Ba6 23. Nd5 Qg5 24. Nf4 gxh3 25. Qxg5 hxg5 26. Nxh3 Kg6 27. Bxc7 Rf3 28. Nf2 Kh5 29. d5 g4 30. d6 Bb5 31. Rd1 Bd7 32. Rd5+ Kg6 33. Nxg4 Rg3+ 34. Kf2 Rxg4 35. Re5 Rf4+ 36. Ke3 Rf7 37. Bb8 a6 38. Re4 Nf5+ 39. Kd3 Kf6 40. Bc7 Bc6 41. Re1 Rd7 42. Rf1 g6 43. Rf4 Kg7 44. Bb6 Rxd6+ 45. Kc3 Ne7 46. Bc5 Nd5+ 47. Kb2 Nxf4 48. Bxd6 Ne6 49. Be5+ Kf7 50. c4 g5 51. a4 Nf4 52. Kc3 Ne2+ 53. Kd2 Bf3 54. b4 Ke6 55. Bb8 Kf5 56. Ke3 g4 57. b5 Nc3 58. bxa6 bxa6 59. a5 Nd1+ 60. Kd4 Ke6 61. Kc5 Bb7 62. Bg3 Nc3 63. Kb6 Bc8 64. Kc7 Ne2 65. Bh2 Bd7 66. Kb7 g3 67. Bxg3 Nxg3 68. Kxa6 Bc6 69. Ka7 Kd6 70. Kb8 Kd7 71. a6 Ba8 72. Kxa8 Kc7 73. Ka7 Ne4 74. Ka8 Nd6 0-1

[Event "HUN-chT Youth 2019"]
[Site "Budapest"]
[Date "2019.10.29"]
[Round "6.1"]
[White "Thierry, Edvard"]
[Black "Konyves, Almos"]
[Result "0-1"]
[ECO "B62"]
[WhiteElo "1507"]
[BlackElo "2006"]
[Annotator "NA"]
[PlyCount "122"]
[EventDate "2019.10.26"]
[EventType "team-tourn"]
[EventCountry "HUN"]
[SourceTitle "playchess.com"]
[Source "ChessBase"]
[SourceQuality "1"]
[TimeControl "5400+30"]

1. e4 {[%emt 0:00:00]} c5 {[%emt 0:00:00]} 2. Nf3 {[%emt 0:00:00]} Nc6 {[%emt 0:00:00]} 3. d4 {[%emt 0:00:00]} cxd4 {[%emt 0:00:00]} 4. Nxd4 {[%emt 0:00:00]} Nf6 {[%emt 0:00:02]} 5. Nc3 {[%emt 0:00:00]} d6 {[%emt 0:00:10]} 6. Bg5 {[%emt 0:02:02]} e6 {[%emt 0:00:07]} 7. f4 {[%emt 0:01:09]} h6 {[%emt 0:00:07] B62: Sicilian: Richter-Rauzer: 6...e6: Unusual White 7th moves} 8. Bh4 {[%emt 0:00:06]} Be7 {[%emt 0:00:53]} 9. Bg3 {[%emt 0:01:13]} Qa5 $146 {[%emt 0:06:54]} ({Predecessor:} 9... O-O 10. Nb3 a6 11. Qf3 e5 12. f5 Nd4 13. Qd3 d5 14. Bxe5 Nxb3 15. axb3 dxe4 {½-½ (63) Cuenca Jimenez,J (2408)-Kurnosov,I (2579) Evora 2007}) 10. Nb3 {[%emt 0:02:06]} Qc7 {[%emt 0:02:30]} 11. Be2 {[%emt 0:03:55]} a6 {[%emt 0:00:54]} 12. Bf3 {[%emt 0:01:46]} O-O {[%emt 0:01:29]} 13. O-O {[%emt 0:00:39]} b5 {[%emt 0:09:23]} 14. Kh1 {[%emt 0:02:45]} Bb7 {[%emt 0:02:57]} 15. a3 Rac8 {[%emt 0:02:14]} 16. Nd4 {[%emt 0:11:26]} Na5 {[%emt 0:02:54]} 17. Be1 {[%emt 0:07:07]} Nc4 {[%emt 0:01:12]} 18. Qc1 {[%emt 0:00:15]} Rfd8 {[%emt 0:01:44]} 19. b3 {[%emt 0:01:20]} Nb6 {[%emt 0:00:24]} 20. Ra2 {[%emt 0:06:10]} Nfd7 {[%emt 0:08:32]} 21. Nce2 Nc5 {[%emt 0:00:28]} 22. Ng3 {[%emt 0:05:28]} Bf6 23. Bf2 {[%emt 0:02:47]} Bxd4 {[%emt 0:01:08]} 24. Bxd4 {[%emt 0:04:14]} Nxb3 {[%emt 0:00:12]} 25. Qb2 {[%emt 0:01:42]} Nxd4 {[%emt 0:00:09]} 26. Qxd4 {[%emt 0:00:40]} Qc5 {[%emt 0:00:45]} 27. Qd2 {[%emt 0:00:40]} Nc4 28. Qd3 {[%emt 0:00:12]} Qe3 {[%emt 0:01:27]} 29. Qd1 d5 {[%emt 0:04:05]} 30. exd5 {[%emt 0:00:56]} Bxd5 {[%emt 0:00:07]} 31. Bxd5 {[%emt 0:00:27]} Rxd5 {[%emt 0:00:10]} 32. Qa1 {[%emt 0:01:54]} Qd4 {[%emt 0:01:03]} 33. Qc1 {[%emt 0:02:47]} Qd2 {[%emt 0:02:41]} 34. Qa1 {[%emt 0:00:18]} Ne3 {[%emt 0:01:49]} 35. c4 {[%emt 0:01:05]} Nxf1 {[%emt 0:02:16]} 36. Rxd2 {[%emt 0:00:40]} Nxd2 {[%emt 0:00:08]} 37. cxd5 {[%emt 0:01:37]} Nb3 {[%emt 0:00:10]} 38. Qg1 {[%emt 0:00:05]} Rc1 {[%emt 0:00:09]} 39. Nf1 {[%emt 0:00:10]} exd5 {[%emt 0:06:49]} 40. h3 {[%emt 0:02:02]} d4 {[%emt 0:00:20]} 41. Kh2 {[%emt 0:00:25]} Rc2 $2 {[%emt 0:02:11]} (41... Nd2 42. Nxd2 {[%mdl 64] Discovered Attack} Rxg1 43. Kxg1 Kf8) 42. Ng3 {[%emt 0:09:14]} Nd2 {[%emt 0:05:05]} 43. Qd1 {[%emt 0:01:10]} d3 $18 {[%emt 0:00:30]} 44. Nf1 {[%emt 0:04:07]} Nxf1+ {[%emt 0:02:07]} 45. Qxf1 {[%emt 0:00:07]} d2 {[%emt 0:03:01]} 46. Qe2 {[%emt 0:02:37]} Rb2 {[%emt 0:00:32]} 47. h4 {[%emt 0:03:49]} a5 {[%emt 0:01:16]} 48. h5 {[%emt 0:03:54]} a4 {[%emt 0:01:38]} 49. Kh3 {[%emt 0:11:45]} b4 {[%emt 0:01:42]} 50. Qe8+ {[%emt 0:00:35]} Kh7 {[%emt 0:00:11]} 51. Qxa4 {[%emt 0:00:36]} Ra2 {[%emt 0:02:31]} 52. Qd1 {[%emt 0:02:20]} Rxa3+ {[%emt 0:01:15]} 53. Kh2 {[%emt 0:00:33]} Rd3 {[%emt 0:00:15]} 54. Qe2 {[%emt 0:02:36]} Rd4 {[%emt 0:01:11]} 55. Qd1 {[%emt 0:00:29]} b3 {[%emt 0:01:28]} 56. Kh3 {[%emt 0:01:45]} Kg8 {[%emt 0:00:39]} 57. g3 {[%emt 0:01:31]} b2 {[%emt 0:00:21]} 58. Qe2 {[%emt 0:00:16]} Rd8 {[%emt 0:00:14]} 59. Qd1 {[%emt 0:00:50]} b1=Q {[%emt 0:00:15]} 60. Qxb1 {[%emt 0:00:03]} d1=Q {[%emt 0:00:08]} 61. Qf5 {[%emt 0:00:07]} Qd7 {[%emt 0:00:10]} 0-1

[Event "HUN-chT Youth 2019"]
[Site "Budapest"]
[Date "2019.10.29"]
[Round "6.2"]
[White "Leszko, Bence"]
[Black "Pasztor, Balazs"]
[Result "1/2-1/2"]
[ECO "A06"]
[WhiteElo "2201"]
[BlackElo "2152"]
[Annotator "RC"]
[PlyCount "129"]
[EventDate "2019.10.26"]
[EventType "team-tourn"]
[EventCountry "HUN"]
[SourceTitle "playchess.com"]
[Source "ChessBase"]
[SourceQuality "1"]
[TimeControl "5400+30"]

1. Nf3 {[%emt 0:00:00]} d5 {[%emt 0:00:00]} 2. e3 {[%emt 0:00:00]} Nf6 {[%emt 0:00:46]} 3. c4 {[%emt 0:00:00]} e6 {[%emt 0:03:45]} 4. Nc3 {[%emt 0:00:00]} c5 {[%emt 0:02:59]} 5. cxd5 {[%emt 0:00:01]} Nxd5 {[%emt 0:03:17]} 6. Qc2 {[%emt 0:04:56]} Nc6 {[%emt 0:05:48]} 7. a3 {[%emt 0:00:10]} Nxc3 {[%emt 0:07:26]} 8. Qxc3 {[%emt 0:02:51]} Qa5 {[%emt 0:05:19]} 9. Qc2 {[%emt 0:02:13]} Be7 {[%emt 0:02:01]} 10. Be2 {[%emt 0:00:48]} O-O {[%emt 0:02:29]} 11. O-O {[%emt 0:00:11]} Bf6 {[%emt 0:03:17]} 12. d3 {[%emt 0:01:22]} Qb6 {[%emt 0:03:20]} 13. Rb1 {[%emt 0:01:19]} Bd7 {[%emt 0:02:16]} 14. Bd2 {[%emt 0:00:08]} Rac8 {[%emt 0:03:14]} 15. Bc3 {[%emt 0:00:34]} e5 {[%emt 0:05:02]} 16. Nd2 {[%emt 0:02:41]} Be6 {[%emt 0:04:31]} 17. Nc4 {[%emt 0:02:17]} Qc7 {[%emt 0:01:46]} 18. Bf3 {[%emt 0:02:10]} b5 {[%emt 0:05:38]} 19. Bxc6 {[%emt 0:00:39]} bxc4 {[%emt 0:01:33]} 20. Bb5 {[%emt 0:01:06]} cxd3 {[%emt 0:00:50]} 21. Bxd3 {[%emt 0:00:02]} g6 {[%emt 0:03:30]} 22. Rbc1 {[%emt 0:05:49]} Qb6 {[%emt 0:02:56]} 23. Qe2 {[%emt 0:01:10]} c4 {[%emt 0:04:10]} 24. Be4 {[%emt 0:01:22]} Bg7 {[%emt 0:01:37]} 25. Rfd1 {[%emt 0:01:08]} Rfd8 {[%emt 0:03:26]} 26. Rxd8+ {[%emt 0:00:59]} Rxd8 {[%emt 0:00:36]} 27. Rd1 {[%emt 0:00:59]} f5 {[%emt 0:03:57]} 28. Bc2 {[%emt 0:00:39]} e4 {[%emt 0:01:25]} 29. Rxd8+ {[%emt 0:02:31]} Qxd8 {[%emt 0:00:10]} 30. Bxg7 {[%emt 0:00:04]} Kxg7 {[%emt 0:00:12]} 31. Qd1 {[%emt 0:02:23]} Qxd1+ {[%emt 0:01:39]} 32. Bxd1 {[%emt 0:00:01]} Kf6 {[%emt 0:02:11]} 33. Kf1 {[%emt 0:00:16]} Ke5 {[%emt 0:00:59]} 34. g3 {[%emt 0:00:49]} a5 {[%emt 0:02:47]} 35. Ke1 {[%emt 0:03:46]} Bd7 {[%emt 0:05:20]} 36. Kd2 {[%emt 0:00:27]} Kd5 {[%emt 0:00:45]} 37. Kc3 {[%emt 0:01:01]} Kc5 {[%emt 0:00:57]} 38. Be2 {[%emt 0:01:05]} Be6 {[%emt 0:00:43]} 39. h4 {[%emt 0:01:47]} h6 {[%emt 0:02:04]} 40. Bd1 {[%emt 0:00:21]} Bd7 {[%emt 0:00:57]} 41. Bc2 {[%emt 0:00:08]} g5 {[%emt 0:01:18]} 42. hxg5 {[%emt 0:00:20]} hxg5 {[%emt 0:00:06]} 43. g4 {[%emt 0:00:43]} Be6 {[%emt 0:03:26]} 44. gxf5 {[%emt 0:01:02]} Bxf5 {[%emt 0:00:06]} 45. Bd1 {[%emt 0:00:35]} Bd7 {[%emt 0:00:32]} 46. Bh5 {[%emt 0:00:38]} Be6 {[%emt 0:00:39]} 47. Bg6 {[%emt 0:00:26]} Kd5 {[%emt 0:00:56]} 48. Bh7 {[%emt 0:00:21]} Ke5 {[%emt 0:00:30]} 49. Bg6 {[%emt 0:00:17]} Kd5 {[%emt 0:00:06]} 50. Bh5 {[%emt 0:01:17]} Kc5 {[%emt 0:00:26]} 51. Be8 {[%emt 0:00:00]} Kd5 {[%emt 0:00:46]} 52. Bg6 {[%emt 0:06:01]} Ke5 {[%emt 0:00:30]} 53. Bh5 {[%emt 0:00:06]} Kd5 {[%emt 0:00:27]} 54. Be2 {[%emt 0:00:23]} Kc5 {[%emt 0:00:07]} 55. Bd1 {[%emt 0:00:02]} Bf7 {[%emt 0:00:56]} 56. Bc2 {[%emt 0:00:12]} Bd5 {[%emt 0:00:42]} 57. Bb1 {[%emt 0:00:23]} Bc6 {[%emt 0:00:22]} 58. Bc2 {[%emt 0:00:30]} Bd5 {[%emt 0:00:08]} 59. Ba4 {[%emt 0:01:32]} Be6 {[%emt 0:00:27]} 60. Be8 {[%emt 0:00:17]} Kd5 {[%emt 0:00:30]} 61. Bh5 {[%emt 0:00:00]} Kc5 {[%emt 0:00:23]} 62. Bg6 {[%emt 0:00:54]} Kd5 {[%emt 0:00:11]} 63. b4 {[%emt 0:05:24]} cxb3 {[%emt 0:00:40]} 64. Kxb3 {[%emt 0:00:01]} Bd7 {[%emt 0:00:29]} 65. Kc3 {[%emt 0:01:29]} 1/2-1/2

[Event "HUN-chT Youth 2019"]
[Site "Budapest"]
[Date "2019.10.29"]
[Round "6.2"]
[White "Bodrogi, Bendeguz"]
[Black "Szuhorukov, Marcell"]
[Result "1-0"]
[ECO "E72"]
[WhiteElo "1903"]
[BlackElo "1384"]
[Annotator "NA RC"]
[PlyCount "74"]
[EventDate "2019.10.26"]
[EventType "team-tourn"]
[EventCountry "HUN"]
[SourceTitle "playchess.com"]
[Source "ChessBase"]
[SourceQuality "1"]
[TimeControl "5400+30"]

1. c4 {[%emt 0:00:00]} Nf6 {[%emt 0:00:48]} 2. Nc3 {[%emt 0:01:26]} g6 {[%emt 0:00:29]} 3. e4 {[%emt 0:01:15]} d6 {[%emt 0:00:10]} 4. d4 {[%emt 0:00:33]} Bg7 {[%emt 0:00:12]} 5. g3 {[%emt 0:00:47]} O-O {[%emt 0:00:13]} 6. Bg2 {[%emt 0:00:32]} Nbd7 {[%emt 0:00:51]} 7. Nge2 {[%emt 0:00:58]} e5 {[%emt 0:01:01]} 8. O-O {[%emt 0:00:47]} exd4 {[%emt 0:00:25]} 9. Nxd4 {[%emt 0:00:43]} Ne5 {[%emt 0:00:28]} 10. b3 {[%emt 0:02:13]} Ned7 {[%emt 0:00:54]} 11. Bb2 {[%emt 0:01:06]} Re8 {[%emt 0:11:14]} 12. Re1 {[%emt 0:02:41]} Nc5 {[%emt 0:00:44]} 13. Qc2 {[%emt 0:05:12]} Nfd7 {[%emt 0:08:56]} 14. Rad1 {[%emt 0:01:01]} a5 {[%emt 0:03:56]} 15. Ncb5 {[%emt 0:13:57]} h5 {[%emt 0:07:09]} 16. a3 {[%emt 0:01:58]} h4 {[%emt 0:02:47]} 17. b4 {[%emt 0:00:36]} axb4 {[%emt 0:00:33]} 18. axb4 {[%emt 0:00:02]} Na6 {[%emt 0:04:17]} 19. Qb3 {[%emt 0:00:35]} Ne5 {[%emt 0:06:23]} 20. Nf3 {[%emt 0:16:23]} Nxf3+ {[%emt 0:04:00]} 21. Bxf3 {[%emt 0:00:20]} hxg3 {[%emt 0:06:50]} 22. hxg3 {[%emt 0:00:30]} Bxb2 {[%emt 0:00:48]} 23. Qxb2 {[%emt 0:00:10]} Be6 {[%emt 0:00:33]} 24. Qc3 {[%emt 0:02:44]} Qg5 {[%emt 0:03:48]} 25. e5 {[%emt 0:03:04]} Bg4 {[%emt 0:02:58]} 26. Bxg4 {[%emt 0:02:17]} Qxg4 {[%emt 0:02:05]} 27. exd6 {[%emt 0:01:13]} Rad8 {[%emt 0:04:24]} 28. Rxe8+ {[%emt 0:02:45]} Rxe8 {[%emt 0:00:18]} 29. Rd4 {[%emt 0:00:05]} Qf5 {[%emt 0:01:46]} 30. dxc7 {[%emt 0:04:12]} Qb1+ {[%emt 0:07:26]} 31. Kg2 {[%emt 0:01:10]} Kf8 {[%emt 0:01:04]} 32. Rf4 {[%emt 0:02:09]} Nxb4 {[%emt 0:01:44]} 33. Qh8+ {[%emt 0:00:29]} Ke7 {[%emt 0:00:13]} 34. Qxe8+ {[%emt 0:00:14]} Kxe8 {[%emt 0:01:08]} 35. c8=Q+ {[%emt 0:00:18]} Ke7 {[%emt 0:00:08]} 36. Qc7+ {[%emt 0:00:23]} Ke6 {[%emt 0:00:30]} 37. Qxf7+ {[%emt 0:00:17]} Ke5 {[%emt 0:00:11]} 1-0

[Event "HUN-chT Youth 2019"]
[Site "Budapest"]
[Date "2019.10.28"]
[Round "6.3"]
[White "Meszaros, Jazmin"]
[Black "Onodi, Miklos"]
[Result "*"]
[ECO "B20"]
[WhiteElo "1171"]
[BlackElo "1548"]
[Annotator "NA RC"]
[PlyCount "37"]
[EventDate "2019.10.26"]
[EventType "team-tourn"]
[EventCountry "HUN"]
[SourceTitle "playchess.com"]
[Source "ChessBase"]
[SourceQuality "1"]
[TimeControl "5400+30"]

1. e4 {[%emt 0:00:00]} c5 {[%emt 0:00:16]} 2. d4 {[%emt 0:00:12]} cxd4 {[%emt 0:00:10]} 3. Qxd4 {[%emt 0:00:49]} Nc6 {[%emt 0:00:16]} 4. Qd1 {[%emt 0:00:21]} g6 {[%emt 0:01:05]} 5. Nf3 {[%emt 0:00:31]} Bg7 {[%emt 0:00:12]} 6. Be2 {[%emt 0:00:34]} Nf6 {[%emt 0:00:27]} 7. O-O {[%emt 0:00:21]} Nxe4 {[%emt 0:00:30]} 8. Bd3 {[%emt 0:00:55]} Nf6 {[%emt 0:00:50]} 9. Bg5 {[%emt 0:00:58]} O-O {[%emt 0:01:29]} 10. Bxf6 {[%emt 0:00:16]} Bxf6 {[%emt 0:00:10]} 11. Qd2 {[%emt 0:01:55]} Bxb2 {[%emt 0:01:31]} 12. Qh6 {[%emt 0:00:29]} Bg7 {[%emt 0:00:34]} 13. Qh3 {[%emt 0:00:49]} d5 {[%emt 0:00:09]} 14. Qh4 {[%emt 0:01:17]} e6 {[%emt 0:01:36]} 15. Qxd8 {[%emt 0:00:12]} Rxd8 {[%emt 0:00:07]} 16. Nc3 {[%emt 0:00:27]} Bxc3 {[%emt 0:00:08]} 17. Rad1 {[%emt 0:00:19]} e5 {[%emt 0:00:40]} 18. Be2 {[%emt 0:02:25]} Nd4 {[%emt 0:01:09]} 19. Nxd4 {[%emt 0:01:27]} *